bitfinex/quotes_ETHUSD_20250702
["timestamp","ask_amount","ask_price","bid_price","bid_amount"]
[1751497792342,0.8132,2593.7,2592.2,0.8113]
[1751497792542,3.85587178,2593.5,2592.5,3.85727999]
[1751497792781,0.1928,2593.2,2592.8,0.1928]
[1751497793269,0.8132,2593.0,2592.4,0.8113]
[1751497793568,1.978,2593.2,2592.5,4.32405462]
[1751497793936,1.978,2593.2,2592.5,0.46687428]
[1751497794131,1.978,2593.2,2592.8,0.7917]
[1751497794936,1.978,2593.2,2592.4,4.64905577]
[1751497795340,1.978,2593.2,2592.5,3.85726746]
[1751497796772,1.978,2593.2,2592.5,3.85728061]
[1751497797066,1.978,2593.2,2592.6,0.85063861]
[1751497798368,1.978,2593.2,2592.6,3.85706992]
[1751497798674,1.978,2593.2,2592.5,3.85727429]
[1751497798675,1.978,2593.2,2592.5,4.72]
[1751497798840,0.7653,2593.1,2592.5,4.72]
[1751497799041,0.7653,2593.1,2592.5,8.5772776]
[1751497799861,0.7653,2593.1,2592.6,3.85710444]
[1751497800372,0.8224,2593.6,2592.5,4.72]
[1751497800554,1.978,2593.3,2592.9,3.85657031]
[1751497800759,1.978,2593.3,2592.8,3.856776]
[1751497800949,0.8224,2593.6,2592.9,4.62803902]
[1751497801150,1.978,2593.5,2592.9,3.85666949]
[1751497801346,1.978,2593.5,2592.8,3.85676202]
[1751497801551,1.978,2593.5,2592.5,4.72]
[1751497801750,1.978,2593.5,2592.8,3.85671807]
[1751497801947,0.8224,2593.6,2592.9,3.85667197]
[1751497802170,0.8224,2593.6,2593.0,4.66805941]
[1751497802377,1.978,2593.5,2593.0,0.8116]
[1751497802837,1.978,2593.5,2593.0,4.66808524]
[1751497803237,2.17,2593.5,2593.0,1.0044]
[1751497803441,2.17,2593.5,2593.0,1.91474993]
[1751497803692,2.17,2593.5,2593.0,5.7712228]
[1751497804174,2.17,2593.5,2593.1,3.85632438]
[1751497804360,2.17,2593.5,2593.2,3.85623318]
[1751497805085,2.17,2593.5,2593.0,1.91474993]
[1751497805276,2.17,2593.5,2593.1,3.85638304]
[1751497805447,2.17,2593.5,2593.0,5.77120401]
[1751497805848,2.17,2593.5,2593.1,3.85637453]
[1751497806049,2.17,2593.5,2593.2,3.85621576]
[1751497807277,2.17,2593.5,2593.1,4.5275941]
[1751497807849,2.17,2593.5,2593.1,0.67128261]
[1751497809576,2.19,2593.5,2593.1,0.67128261]
[1751497810380,2.19,2593.5,2593.1,4.52762963]
[1751497810781,2.19,2593.5,2593.1,4.52756627]
[1751497810981,2.19,2593.5,2593.2,0.91034993]
[1751497811202,2.19,2593.5,2593.2,4.76656397]
[1751497811356,0.02,2593.5,2593.4,4.674742]
[1751497811550,0.02,2593.5,2593.4,4.866742]
[1751497812370,0.02,2593.5,2593.4,4.047942]
[1751497812681,0.02,2593.5,2593.4,0.192]
[1751497819067,0.02,2593.5,2593.0,4.72]
[1751497819290,0.212,2593.5,2593.0,4.9128]
[1751497819660,0.7931,2593.4,2593.0,4.9128]
[1751497819881,0.7931,2593.4,2593.0,5.78975395]
[1751497820086,0.7931,2593.4,2593.0,0.1928]
[1751497820287,8.7401,2593.4,2592.5,0.01]
[1751497820488,0.1928,2593.2,2592.7,0.1928]
[1751497820670,1.966,2593.1,2592.7,0.1928]
[1751497820869,1.966,2593.1,2592.7,0.59879318]
[1751497821387,1.966,2593.1,2592.5,0.01]
[1751497821388,1.966,2593.1,2593.0,4.04933682]
[1751497821573,0.7931,2593.4,2593.1,3.85634742]
[1751497821768,0.7931,2593.4,2593.0,0.1928]
[1751497824396,0.7931,2593.4,2593.0,0.2028]
[1751497827670,0.212,2593.5,2593.0,4.84442569]
[1751497827671,1.966,2593.3,2593.0,4.84442569]
[1751497828396,1.966,2593.3,2593.0,0.988]
[1751497829787,0.212,2593.5,2593.0,0.988]
[1751497829965,1.966,2593.4,2593.1,3.85628457]
[1751497831618,0.212,2593.5,2593.1,3.85628457]
[1751497831767,0.02,2593.5,2593.2,3.85611841]
[1751497831971,0.02,2593.5,2593.2,4.04891841]
[1751497841325,0.02,2593.5,2593.3,7.14612659]
[1751497841516,0.02,2593.5,2593.4,4.809842]
[1751497842015,0.02,2593.5,2593.4,19.529842]
[1751497842433,0.02,2593.5,2593.4,4.72]
[1751497843099,0.02,2593.5,2593.4,11.76396859]
[1751497843795,0.02,2593.5,2593.4,29.70196859]
[1751497853239,0.02,2593.5,2593.4,29.89396859]
[1751497858443,0.02,2593.5,2593.4,34.61396859]
[1751497860854,0.02,2594.1,2594.0,3.85505011]
[1751497861055,0.02,2594.1,2594.0,11.98305011]
[1751497863036,0.02,2594.1,2594.0,21.98305011]
[1751497863353,0.02,2594.1,2594.0,27.52305011]
[1751497863844,0.02,2594.1,2594.0,27.80535578]
[1751497865115,1e-08,2594.1,2594.0,27.80535578]
[1751497866055,0.7869,2594.5,2594.3,3.85458211]
[1751497866355,0.7869,2594.5,2594.2,3.85475291]
[1751497866535,0.7869,2594.5,2594.3,3.85452635]
[1751497867142,0.7869,2594.5,2594.2,11.78967342]
[1751497867448,0.7869,2594.5,2594.1,3.85481846]
[1751497867620,0.7869,2594.5,2594.2,11.78872243]
[1751497869121,0.8069,2594.5,2594.2,11.78872243]
[1751497869319,0.8069,2594.5,2594.1,3.85481606]
[1751497869543,0.8069,2594.5,2594.1,7.934]
[1751497869743,0.8069,2594.5,2594.1,11.78888539]
[1751497870624,0.8069,2594.5,2594.0,3.85495675]
[1751497870825,0.8069,2594.5,2594.1,7.934]
[1751497871026,0.8069,2594.5,2594.1,11.78880957]
[1751497872022,0.8069,2594.5,2594.4,3.85445575]
[1751497874767,0.02,2594.5,2594.4,11.00058234]
[1751497876264,0.02,2594.5,2594.4,11.97945575]
[1751497877038,0.02,2594.5,2594.4,4.04645575]
[1751497877368,0.02,2594.5,2594.4,11.97945575]
[1751497879444,0.02,2594.5,2594.4,4.04645575]
[1751497879644,0.02,2594.5,2594.4,11.97845575]
[1751497880671,0.02,2594.5,2594.4,21.76068234]
[1751497880856,0.02,2594.5,2594.4,29.69268234]
[1751497881739,0.02,2594.5,2594.4,21.76068234]
[1751497881939,0.02,2594.5,2594.4,29.69268234]
[1751497884572,0.02,2594.5,2594.4,21.78545575]
[1751497884771,0.8287,2594.5,2594.2,7.931]
[1751497885175,0.8287,2594.5,2594.2,11.78572554]
[1751497885365,0.8287,2594.5,2594.4,3.85445575]
[1751497889370,0.8287,2594.5,2594.3,3.85452437]
[1751497890083,0.8287,2594.5,2594.1,3.8547586]
[1751497890388,0.8287,2594.5,2594.1,11.7847586]
[1751497890755,0.8287,2594.5,2594.1,11.9767586]
[1751497893051,0.8287,2594.5,2594.2,3.85472977]
[1751497896992,0.8287,2594.5,2594.0,3.86499427]
[1751497896993,0.8287,2594.5,2594.0,0.01]
[1751497897299,0.9783,2594.1,2594.0,0.01]
[1751497898411,4.8332015,2594.1,2594.0,0.01]
[1751497900418,24.0952015,2594.1,2594.0,0.01]
[1751497900617,25.00061831,2594.1,2594.0,0.01]
[1751497902087,4.62779332,2593.5,2593.4,0.01]
[1751497902415,31.66191991,2593.5,2593.4,0.01]
[1751497902912,10.772,2593.5,2593.4,0.01]
[1751497903431,20.661,2593.5,2593.4,0.01]
[1751497906721,10.772,2593.5,2593.4,0.01]
[1751497906920,11.0519534,2593.5,2593.4,0.01]
[1751497908495,1.1609534,2593.5,2593.4,0.01]
[1751497908700,10.661,2593.5,2593.4,0.01]
[1751497909918,9.889,2593.5,2593.4,0.01]
[1751497910152,0.192,2593.5,2593.4,0.01]
[1751497910302,3.87419908,2594.6,2593.7,4.6517718]
[1751497910303,0.192,2593.9,2593.7,4.6517718]
[1751497910646,1.958,2594.2,2594.0,3.85503897]
[1751497911145,1.958,2594.2,2593.8,11.00138248]
[1751497911150,1.958,2594.2,2593.9,3.85512051]
[1751497912527,1.958,2594.2,2593.8,11.19340757]
[1751497913036,1.958,2594.2,2593.8,0.192]
[1751497916614,1.978,2594.2,2593.8,0.192]
[1751497920446,1.978,2594.2,2593.9,3.85519873]
[1751497920953,0.02,2594.2,2594.1,4.6683015]
[1751497921121,0.02,2594.2,2594.1,4.8603015]
[1751497922115,0.02,2594.2,2594.1,14.8603015]
[1751497923951,0.02,2595.1,2595.0,10.7859]
[1751497924151,0.02,2595.1,2595.0,22.86418113]
[1751497924353,0.02,2595.6,2595.1,14.61311605]
[1751497925529,1e-08,2595.2,2595.1,22.53911605]
[1751497925744,1e-08,2595.3,2595.2,14.61296757]
[1751497926048,1e-08,2595.3,2595.2,15.11601011]
[1751497926247,1e-08,2595.3,2595.2,15.30801011]
[1751497927944,1e-08,2595.3,2595.2,15.30801011]
[1751497928624,0.02,2595.6,2595.5,4.61252219]
[1751497928625,1e-08,2595.6,2595.5,4.61252219]
[1751497928828,0.02,2596.1,2596.0,13.85208012]
[1751497929025,0.02,2596.1,2596.0,15.69037012]
[1751497929230,0.02,2596.1,2596.0,15.88237012]
[1751497930153,0.02,2596.1,2596.0,23.80437012]
[1751497930342,0.02,2596.1,2596.0,14.04408012]
[1751497932452,0.02,2596.1,2596.0,4.04408012]
[1751497937637,0.02,2596.1,2596.0,4.80108012]
[1751497937842,0.02,2596.1,2596.0,4.04408012]
[1751497938942,0.02,2596.1,2596.0,14.04408012]
[1751497939939,0.02,2596.1,2596.0,21.96308012]
[1751497942369,0.02,2596.1,2596.0,14.04408012]
[1751497942671,0.02,2596.1,2596.0,21.96208012]
[1751497944647,0.02,2596.1,2596.0,0.192]
[1751497945674,0.8145,2596.1,2595.3,5.5285]
[1751497945949,0.8145,2596.1,2595.1,0.19141581]
[1751497945950,1.954,2596.0,2595.9,0.192]
[1751497946275,0.7945,2595.9,2595.4,3.85292387]
[1751497946478,0.7945,2595.9,2595.6,0.192]
[1751497946679,1.07135,2595.9,2594.9,0.8085]
[1751497946845,0.7945,2595.7,2595.3,0.192]
[1751497947167,10.063,2595.8,2595.0,0.192]
[1751497947168,0.7945,2595.3,2595.0,0.192]
[1751497947748,1.954,2595.2,2595.0,0.192]
[1751497948661,1.954,2595.2,2594.8,10.0]
[1751497948881,1.954,2595.2,2594.9,3.85369319]
[1751497949176,1.954,2595.2,2594.8,14.04578895]
[1751497949569,1.954,2595.2,2594.8,10.192]
[1751497949768,1.954,2595.2,2594.8,14.04584349]
[1751497950977,1.954,2595.2,2594.8,10.192]
[1751497951574,1.954,2595.2,2594.8,14.04577629]
[1751497953758,1.954,2595.2,2594.8,0.192]
[1751497954084,0.192,2595.1,2594.7,3.85397974]
[1751497954850,0.192,2595.1,2594.6,0.192]
[1751497955054,2.7485,2595.3,2595.0,0.192]
[1751497956077,2.7485,2595.3,2594.9,0.192]
[1751497956283,3.02335,2595.3,2594.9,0.192]
[1751497956456,0.192,2595.2,2594.7,4.04594147]
[1751497958159,0.7856,2595.1,2594.7,0.192]
[1751497958359,0.9776,2595.1,2594.6,0.192]
[1751497958560,0.7856,2595.0,2594.6,0.192]
[1751497959454,0.192,2594.7,2594.2,0.192]
[1751497959666,0.7772,2594.5,2594.2,0.192]
[1751497960083,0.7772,2594.5,2594.2,4.04673624]
[1751497960389,0.7772,2594.5,2594.2,0.192]
[1751497960585,0.7772,2594.5,2594.3,3.85459613]
[1751497960887,0.7772,2594.5,2594.2,0.192]
[1751497961468,0.7772,2594.5,2594.2,10.192]
[1751497962375,0.192,2594.7,2594.2,0.192]
[1751497962587,1.955,2594.6,2594.2,1.2112]
[1751497962760,1.955,2594.6,2594.3,3.85449282]
[1751497963085,1.955,2594.6,2594.4,3.85441089]
[1751497964761,1.955,2594.6,2594.2,5.06591504]
[1751497964762,1.955,2594.6,2594.2,0.192]
[1751497965162,0.8299,2594.5,2594.2,0.192]
[1751497965362,0.8299,2594.5,2594.1,0.212]
[1751497966672,0.8299,2594.5,2594.1,0.02]
[1751497966883,0.192,2594.4,2594.1,0.02]
[1751497967493,0.8145,2594.3,2594.1,0.02]
[1751497967993,0.192,2594.2,2594.1,0.02]
[1751497971288,1.84775,2594.2,2594.1,0.02]
[1751497971596,0.9551,2594.2,2594.1,0.02]
[1751497972479,2.9091,2594.2,2594.1,0.02]
[1751497972702,2.146,2594.2,2594.1,0.02]
[1751497973104,0.192,2594.2,2594.1,3.8749015]
[1751497973406,1.954,2594.2,2594.1,0.212]
[1751497973724,1.954,2594.2,2594.1,1.0852335]
[1751497974089,1.954,2594.2,2594.1,4.940135]
[1751497974939,2.146,2594.6,2594.1,1.0852335]
[1751497975100,2.146,2594.6,2594.3,3.8544585]
[1751497976927,2.146,2594.6,2594.1,1.0852335]
[1751497977132,2.146,2594.6,2594.2,3.85474769]
[1751497978315,2.146,2594.6,2594.2,4.56314673]
[1751497980636,2.146,2594.6,2594.3,3.85459537]
[1751497981534,2.146,2594.6,2594.2,4.5630978]
[1751497984524,2.146,2594.6,2594.3,3.85459912]
[1751497986005,1.954,2594.6,2594.4,3.85439637]
[1751497986216,1.954,2594.6,2594.3,4.04653183]
[1751497986435,1.954,2594.6,2594.3,4.90949385]
[1751497988531,1.954,2594.6,2594.3,1.05496202]
[1751497988830,1.954,2594.6,2594.3,4.04657753]
[1751497989612,1.954,2594.6,2594.3,0.192]
[1751497990845,0.8006,2594.5,2594.1,4.74]
[1751497991006,0.192,2594.4,2594.1,4.74]
[1751497991328,0.8006,2594.5,2594.1,4.74]
[1751497991532,0.192,2594.3,2594.1,4.74]
[1751497994104,0.8006,2594.5,2594.1,4.74]
[1751497994431,0.9926,2594.5,2594.1,4.74]
[1751497994631,0.9926,2594.5,2594.1,0.02]
[1751497998132,0.7732,2594.9,2594.3,0.7503]
[1751497998436,1.954,2594.8,2594.3,1.40481173]
[1751497998640,1.954,2594.8,2594.5,0.192]
[1751498007644,0.9652,2594.9,2594.5,0.192]
[1751498007948,1.952,2594.8,2594.5,0.192]
[1751498012960,1.952,2594.7,2594.5,0.192]
[1751498018969,1.952,2594.7,2594.5,0.212]
[1751498021964,0.192,2594.9,2594.7,3.85387827]
[1751498022261,1.952,2595.0,2594.8,1.09923299]
[1751498022465,1.952,2595.0,2594.7,0.192]
[1751498023455,0.807,2594.9,2594.5,0.212]
[1751498026652,7.912,2594.8,2594.5,0.212]
[1751498031376,7.912,2594.8,2594.5,4.06629869]
[1751498031578,2.141,2595.0,2594.5,0.212]
[1751498031767,0.807,2595.3,2594.9,3.85357885]
[1751498031968,1.949,2595.2,2595.0,3.85352665]
[1751498032168,1.949,2595.2,2595.0,0.192]
[1751498034980,1.949,2595.2,2595.0,4.04555297]
[1751498035173,9.258,2595.4,2595.1,3.85341605]
[1751498035378,1.949,2595.2,2595.1,3.85341605]
[1751498035981,1.949,2595.2,2595.0,4.79777834]
[1751498036159,1.949,2595.2,2595.1,3.85339596]
[1751498037985,0.02,2596.2,2595.5,3.85282219]
[1751498037986,1.949,2595.7,2595.5,3.85282219]
[1751498038186,0.192,2596.0,2595.5,4.04482219]
[1751498038387,1.949,2595.8,2595.5,4.04482219]
[1751498038803,1.949,2595.8,2595.5,14.83622219]
[1751498041897,1.949,2595.8,2595.5,19.55622219]
[1751498043194,1.949,2595.8,2595.5,18.76482219]
[1751498044265,1.949,2595.8,2595.5,19.48133043]
[1751498046471,0.02,2596.1,2595.5,19.48133043]
[1751498046666,1.949,2595.9,2595.5,27.38138205]
[1751498046994,0.02,2596.1,2595.5,27.38138205]
[1751498054044,0.7774,2596.1,2595.5,28.14393043]
[1751498056712,0.7774,2596.1,2595.5,35.28238205]
[1751498057823,0.7774,2596.1,2595.5,28.14393043]
[1751498058025,0.7774,2596.1,2595.5,20.24293043]
[1751498058200,0.7774,2596.1,2595.5,28.14293043]
[1751498059634,0.02,2596.1,2595.5,35.28138205]
[1751498060532,0.8235,2595.9,2595.5,27.38133043]
[1751498060829,0.8235,2595.9,2595.5,19.48133043]
[1751498061024,0.8235,2595.9,2595.5,27.38033043]
[1751498061542,0.853,2596.1,2595.5,27.38033043]
[1751498063822,1.965,2596.1,2595.5,35.35098205]
[1751498064221,1.965,2596.1,2595.5,35.37098205]
[1751498064536,0.02,2596.1,2595.5,35.37098205]
[1751498069115,0.02,2596.1,2595.5,35.36898205]
[1751498069523,0.02,2596.1,2595.5,20.33353043]
[1751498069731,0.02,2596.1,2595.5,27.39833043]
[1751498069732,0.799,2595.9,2595.5,27.39833043]
[1751498070807,0.799,2595.9,2595.5,23.54550824]
[1751498071012,0.799,2595.9,2595.5,14.932]
[1751498071240,0.809,2595.6,2595.5,4.932]
[1751498072338,0.809,2595.6,2595.5,0.02]
[1751498072339,2.754,2595.6,2595.5,0.02]
[1751498072539,3.41464462,2595.6,2595.5,0.02]
[1751498074334,2.754,2595.6,2595.5,0.02]
[1751498077335,6.60667375,2595.6,2595.5,0.02]
[1751498077660,13.74512537,2595.6,2595.5,0.02]
[1751498078853,0.809,2595.6,2595.5,0.02]
[1751498079062,10.65,2595.6,2595.5,0.02]
[1751498079222,4.20424567,2595.6,2595.5,0.02]
[1751498079422,10.65,2595.6,2595.5,0.02]
[1751498080334,10.651,2595.6,2595.5,0.02]
[1751498080531,1.001,2595.6,2595.5,0.02]
[1751498080830,10.843,2595.6,2595.5,0.02]
[1751498081157,1.001,2595.6,2595.5,0.02]
[1751498081360,0.01,2595.6,2595.5,21.01127381]
[1751498081546,0.01,2595.6,2595.5,21.20327381]
[1751498081733,0.01,2595.6,2595.5,14.06482219]
[1751498083753,0.01,2595.6,2595.5,22.00427381]
[1751498087584,0.01,2595.6,2595.5,29.89827381]
[1751498088073,0.01,2595.6,2595.5,22.00427381]
[1751498090246,0.01,2595.6,2595.5,29.89827381]
[1751498096984,0.01,2595.6,2595.5,34.61827381]
[1751498102696,1e-08,2595.6,2595.5,34.61827381]
[1751498103104,1e-08,2595.6,2595.5,34.61427381]
[1751498103655,0.02,2596.1,2596.0,3.85208012]
[1751498103861,0.02,2596.1,2596.0,30.66795971]
[1751498104795,0.02,2596.1,2596.0,14.81450809]
[1751498104965,0.02,2596.1,2596.0,22.70450809]
[1751498105981,0.02,2596.1,2596.0,22.99368484]
[1751498107095,0.02,2596.1,2596.0,27.71268484]
[1751498110204,0.02,2596.1,2596.0,27.71168484]
[1751498112306,0.02,2596.1,2596.0,28.49638484]
[1751498119308,0.02,2596.1,2596.0,27.70968484]
[1751498121824,0.02,2596.1,2596.0,22.98868484]
[1751498122121,0.02,2596.1,2596.0,14.33325687]
[1751498122284,0.02,2596.1,2596.0,22.21825687]
[1751498135663,0.02,2596.1,2596.0,14.33325687]
[1751498135869,0.02,2596.1,2596.0,22.21525687]
[1751498144075,0.02,2596.1,2596.0,10.192]
[1751498144375,0.8423,2596.1,2595.7,10.192]
[1751498144677,1.0343,2596.1,2595.7,10.192]
[1751498145078,0.8223,2596.0,2595.7,0.192]
[1751498145264,0.8223,2596.0,2595.5,0.02]
[1751498145453,0.8223,2595.7,2595.5,0.02]
[1751498145660,2.7613,2595.7,2595.5,0.02]
[1751498148379,0.7533,2595.6,2595.5,0.02]
[1751498148557,0.9453,2595.6,2595.5,0.02]
[1751498150653,0.7533,2595.6,2595.5,0.02]
[1751498150877,2.131,2595.7,2595.5,0.02]
[1751498152270,2.131,2595.7,2595.5,3.87281242]
[1751498152770,2.131,2595.7,2595.5,0.02]
[1751498153079,2.131,2595.7,2595.5,3.87281571]
[1751498154981,2.131,2595.7,2595.5,0.02]
[1751498165393,2.141,2595.7,2595.5,0.02]
[1751498169504,0.8133,2595.6,2595.5,0.02]
[1751498169701,1.0053,2595.6,2595.5,0.02]
[1751498171600,8.8813,2595.6,2595.5,0.02]
[1751498172621,13.29117375,2595.6,2595.5,0.02]
[1751498172767,14.18358712,2595.6,2595.5,0.02]
[1751498172963,16.91735616,2595.6,2595.5,0.02]
[1751498173969,26.91735616,2595.6,2595.5,0.02]
[1751498184001,20.97735616,2595.6,2595.5,0.02]
[1751498184201,27.95994279,2595.6,2595.5,0.02]
[1751498185287,28.85469851,2595.6,2595.5,0.02]
[1751498185807,27.95994279,2595.6,2595.5,0.02]
[1751498186302,28.8547578,2595.6,2595.5,0.02]
[1751498187902,25.00208405,2595.6,2595.5,0.02]
[1751498188111,27.95994279,2595.6,2595.5,0.02]
[1751498191379,28.85507622,2595.6,2595.5,0.02]
[1751498201742,28.86507622,2595.6,2595.5,0.02]
[1751498206633,29.30627218,2595.6,2595.5,0.02]
[1751498209340,28.86507622,2595.6,2595.5,0.02]
[1751498217819,4.40401009,2594.7,2594.5,0.02]
[1751498218150,13.65615863,2594.6,2594.5,0.02]
[1751498218437,14.20615863,2594.6,2594.5,0.02]
[1751498218631,15.1043008,2594.6,2594.5,0.02]
[1751498222643,14.20615863,2594.6,2594.5,0.02]
[1751498222842,17.65212066,2594.6,2594.5,0.02]
[1751498225940,18.5495281,2594.6,2594.5,0.02]
[1751498226306,17.65212066,2594.6,2594.5,0.02]
[1751498226706,1.934,2594.6,2594.5,0.02]
[1751498226942,9.993,2594.6,2594.5,0.8214]
[1751498228345,13.84715863,2594.6,2594.5,0.8214]
[1751498228725,9.993,2594.6,2594.5,0.8214]
[1751498231843,0.192,2594.6,2594.5,0.8214]
[1751498232346,9.989,2594.6,2594.5,0.8214]
[1751498232848,9.988,2594.6,2594.5,0.8214]
[1751498233351,13.84215863,2594.6,2594.5,0.02]
[1751498233647,13.3975494,2594.6,2594.5,0.02]
[1751498234544,2.123,2594.6,2594.5,0.02]
[1751498234843,9.988,2594.6,2594.5,0.8214]
[1751498235023,0.192,2594.6,2594.5,0.8214]
[1751498235222,1.931,2594.6,2594.5,0.8214]
[1751498239426,9.795,2594.6,2594.5,0.8214]
[1751498239924,12.08598871,2594.6,2594.5,0.8214]
[1751498240124,12.27798871,2594.6,2594.5,0.8214]
[1751498240534,16.13214734,2594.6,2594.5,0.8214]
[1751498240934,12.27798871,2594.6,2594.5,0.8214]
[1751498242634,12.27798871,2594.6,2594.5,0.02]
[1751498242635,16.13214734,2594.6,2594.5,0.02]
[1751498242957,23.27059896,2594.6,2594.5,0.02]
[1751498247554,24.05559896,2594.6,2594.5,0.02]
[1751498248765,24.94700554,2594.6,2594.5,0.02]
[1751498251644,34.94700554,2594.6,2594.5,0.02]
[1751498251859,34.94693597,2594.6,2594.5,0.02]
[1751498254596,18.01348435,2594.6,2594.5,0.02]
[1751498254774,1.08333701,2594.6,2594.5,0.02]
[1751498254972,1.08333701,2594.6,2594.5,0.8299]
[1751498254973,9.98,2594.6,2594.5,0.8299]
[1751498258022,2.119,2594.6,2594.5,0.8299]
[1751498258304,9.979,2594.6,2594.5,0.8299]
[1751498258711,12.28838726,2594.6,2594.5,0.02]
[1751498258873,16.14254589,2594.6,2594.5,0.02]
[1751498260702,26.14254589,2594.6,2594.5,0.02]
[1751498260903,27.03330024,2594.6,2594.5,0.02]
[1751498261485,27.81810024,2594.6,2594.5,0.02]
[1751498267291,18.03110024,2594.6,2594.5,0.02]
[1751498267495,19.17430024,2594.6,2594.5,0.02]
[1751498267714,27.03330024,2594.6,2594.5,0.02]
[1751498268022,16.14254589,2594.6,2594.5,0.02]
[1751498268805,8.28354589,2594.6,2594.5,0.02]
[1751498269029,2.12,2594.6,2594.5,0.02]
[1751498269197,9.979,2594.6,2594.5,0.8457]
[1751498270319,0.192,2594.6,2594.5,0.8457]
[1751498270488,9.979,2594.6,2594.5,0.8457]
[1751498271837,3.87295634,2595.5,2594.5,0.8457]
[1751498272049,6.25112118,2595.4,2594.6,0.8119]
[1751498272203,10.25604563,2595.4,2594.6,0.8119]
[1751498272404,2.39804563,2595.4,2594.6,0.8119]
[1751498272641,7.858,2595.3,2594.6,0.8119]
[1751498272951,7.858,2595.2,2594.7,0.7559]
[1751498273247,7.858,2595.1,2594.7,0.7559]
[1751498280157,1.927,2595.4,2594.8,0.7829]
[1751498280343,9.283,2595.5,2594.8,0.7829]
[1751498280554,1.925,2595.4,2594.8,0.7829]
[1751498280866,7.855,2595.3,2594.9,0.7829]
[1751498281957,8.047,2595.3,2594.9,0.7829]
[1751498287738,0.192,2595.3,2594.9,0.7829]
[1751498288063,9.777,2595.2,2594.9,0.7829]
[1751498289850,13.63034768,2595.2,2594.9,0.7829]
[1751498290040,0.82752221,2595.1,2594.9,0.7829]
[1751498290368,13.63034768,2595.2,2594.9,0.7829]
[1751498292093,3.85356454,2595.0,2594.9,0.7829]
[1751498292259,3.85366511,2595.0,2594.6,0.7662]
[1751498292460,8.044,2594.9,2594.6,0.7662]
[1751498292660,0.192,2594.9,2594.6,0.7662]
[1751498292891,7.852,2594.8,2594.6,0.7662]
[1751498293061,11.7059235,2594.8,2594.6,0.7662]
[1751498293991,7.852,2594.8,2594.6,0.7662]
[1751498294193,11.70588848,2594.8,2594.6,0.7662]
[1751498295197,7.852,2594.8,2594.6,0.7662]
[1751498297289,9.775,2594.7,2594.6,0.7662]
[1751498297487,9.775,2594.7,2594.5,0.212]
[1751498298073,9.775,2594.7,2594.6,0.8017]
[1751498300307,13.62901009,2594.7,2594.6,0.8017]
[1751498300601,13.62901009,2594.7,2594.5,0.212]
[1751498302190,3.85415863,2594.6,2594.5,0.212]
[1751498302504,3.85415863,2594.6,2594.5,0.02]
[1751498302877,3.85475291,2594.2,2594.1,0.02]
[1751498303111,23.87485291,2594.2,2594.1,0.02]
[1751498303417,23.87485291,2594.2,2594.0,0.02]
[1751498303418,13.8549015,2594.1,2594.0,0.02]
[1751498303576,15.49650461,2594.1,2594.0,1e-08]
[1751498304298,22.63575164,2594.1,2594.0,1e-08]
[1751498305279,32.41475164,2594.1,2594.0,1e-08]
[1751498305896,25.27630002,2594.1,2594.0,1e-08]
[1751498306092,29.09673937,2594.1,2594.0,1e-08]
[1751498306293,28.21344085,2594.1,2594.0,1e-08]
[1751498309393,14.61429873,2593.9,2593.8,1e-08]
[1751498309595,37.43521001,2593.9,2593.8,1e-08]
[1751498310909,4.61474466,2593.6,2593.5,1e-08]
[1751498311219,24.40674466,2593.6,2593.5,1e-08]
[1751498311401,27.61850578,2593.6,2593.5,1e-08]
[1751498312213,27.61950578,2593.6,2593.5,1e-08]
[1751498312516,17.82650578,2593.6,2593.5,1e-08]
[1751498312811,27.62050578,2593.6,2593.5,1e-08]
[1751498313912,16.85840578,2593.6,2593.5,1e-08]
[1751498314116,13.64664466,2593.6,2593.5,1e-08]
[1751498314982,9.791,2593.6,2593.5,1e-08]
[1751498315287,1.926,2593.6,2593.5,1e-08]
[1751498315597,3.85527939,2593.9,2593.5,1e-08]
[1751498315797,1.926,2593.6,2593.5,1e-08]
[1751498316002,9.795,2593.6,2593.5,1e-08]
[1751498317890,1.926,2593.6,2593.5,1e-08]
[1751498318114,9.793,2593.6,2593.5,1e-08]
[1751498322600,1.926,2593.6,2593.5,1e-08]
[1751498322803,9.788,2593.6,2593.5,1e-08]
[1751498328201,10.786,2593.6,2593.5,1e-08]
[1751498331112,1.926,2593.6,2593.5,0.83000001]
[1751498331312,0.192,2593.7,2593.5,0.83000001]
[1751498331615,9.781,2593.6,2593.5,0.83000001]
[1751498331942,1.926,2593.6,2593.5,0.83000001]
[1751498332141,9.781,2593.6,2593.5,0.83000001]
[1751498332715,1.926,2593.6,2593.5,0.83000001]
[1751498332915,9.781,2593.6,2593.5,0.83000001]
[1751498336444,1.926,2593.6,2593.5,0.83000001]
[1751498336645,9.781,2593.6,2593.5,1.31880746]
[1751498337139,9.781,2593.6,2593.5,0.83000001]
[1751498344262,9.781,2593.6,2593.5,1e-08]
[1751498344557,9.973,2593.6,2593.5,1e-08]
[1751498347058,14.58264466,2593.6,2593.5,1e-08]
[1751498350737,24.58264466,2593.6,2593.5,1e-08]